bitfinex-derivatives/quotes_ETHF0:USTF0_20250110
["timestamp","ask_amount","ask_price","bid_price","bid_amount"]
[1736520471985,0.3077,3250.1,3249.9,4.57001]
[1736520472184,0.30767,3250.4,3250.1,0.30769]
[1736520472394,0.30767,3250.5,3250.2,0.30768]
[1736520472696,0.76906,3250.9,3249.9,4.2623]
[1736520472895,0.76912,3250.7,3249.9,4.2623]
[1736520473194,0.3077,3250.0,3249.9,3.2078]
[1736520473492,0.76917,3250.5,3249.9,3.2078]
[1736520473692,3.3214621,3250.6,3249.9,3.2078]
[1736520473998,0.30768,3250.4,3250.1,0.30769]
[1736520474194,3.2078,3250.6,3249.9,3.2078]
[1736520474394,0.30768,3250.3,3250.1,0.30769]
[1736520474593,0.30768,3250.3,3249.9,3.2078]
[1736520474594,0.3077,3250.0,3249.9,3.2078]
[1736520474892,3.97695,3250.6,3249.9,3.2078]
[1736520475097,4.64591937,3251.0,3249.9,3.2078]
[1736520475395,0.76906,3250.9,3250.2,0.30768]
[1736520475587,3.2078,3250.8,3249.9,3.2078]
[1736520475791,0.3077,3250.0,3249.9,3.2078]
[1736520476695,0.30774,3249.7,3249.5,44.31555]
[1736520477297,0.7692,3250.3,3249.5,40.8]
[1736520477495,3.2078,3250.4,3249.1,3.2078]
[1736520477793,0.76921,3250.3,3249.1,3.2078]
[1736520477998,0.30772,3249.9,3249.2,41.56945]
[1736520478191,3.2078,3250.4,3249.7,3.2078]
[1736520478391,0.30767,3250.4,3249.7,3.97712]
[1736520478700,0.30765,3250.6,3250.4,0.30767]
[1736520478896,0.30762,3250.9,3250.7,0.30763]
[1736520479196,0.76896,3251.3,3250.6,3.2078]
[1736520479496,5.68441937,3251.4,3250.7,40.8]
[1736520479696,0.30762,3251.0,3250.8,0.30762]
[1736520479894,4.64591937,3251.4,3250.7,40.8]
[1736520480097,0.3076,3251.2,3251.0,0.30761]
[1736520480396,4.64591937,3252.1,3251.0,3.2078]
[1736520480700,9.29183875,3253.0,3252.0,0.30752]
[1736520480896,0.76863,3252.7,3251.7,3.2078]
[1736520481097,0.30753,3251.8,3251.7,3.2078]
[1736520481302,3.97651,3252.4,3251.3,3.2078]
[1736520481598,3.97651,3252.4,3251.1,2.071]
[1736520481599,3.2078,3252.4,3251.7,3.2078]
[1736520481903,0.76863,3252.7,3251.6,3.2078]
[1736520482198,3.2078,3252.7,3251.6,3.2078]
[1736520482399,0.30752,3252.0,3251.7,0.30754]
[1736520482697,0.76866,3252.6,3251.6,3.2078]
[1736520482698,0.30754,3251.7,3251.6,3.2078]
[1736520483407,3.2078,3251.9,3250.2,3.2078]
[1736520483605,0.76895,3251.4,3250.2,3.2078]
[1736520483896,3.3214621,3251.0,3249.9,0.9911]
[1736520484095,3.97679,3251.2,3249.9,4.1989]
[1736520484399,5.1524621,3251.5,3249.9,4.1989]
[1736520484606,5.1524621,3251.5,3250.1,7.17692739]
[1736520484607,0.30769,3250.2,3250.1,7.17692739]
[1736520484801,3.3214621,3251.0,3250.1,7.17692739]
[1736520485102,0.30769,3250.2,3250.1,7.17692739]
[1736520486406,3.3214621,3250.5,3249.3,3.2078]
[1736520486605,3.3214621,3250.5,3249.7,0.30773]
[1736520486807,3.2078,3250.2,3249.3,3.2078]
[1736520487007,0.30771,3249.9,3249.7,0.30773]
[1736520487204,0.30769,3250.2,3250.0,0.3077]
[1736520487411,0.30771,3250.0,3249.7,0.30773]
[1736520487608,4.0906121,3250.5,3249.3,3.2078]
[1736520487809,0.30772,3249.9,3249.6,0.30774]
[1736520488104,0.30767,3250.4,3250.1,0.30769]
[1736520488310,3.3214621,3250.5,3249.3,3.2078]
[1736520488509,0.30773,3249.7,3249.4,0.30776]
[1736520488714,0.30773,3249.8,3249.5,41.10775]
[1736520488907,3.3214621,3250.5,3249.5,40.8]
[1736520489107,0.30774,3249.7,3249.5,41.10775]
[1736520489304,0.30772,3249.9,3249.5,40.8]
[1736520489606,0.30773,3249.8,3249.5,41.10775]
[1736520489812,3.2078,3250.2,3249.5,40.8]
[1736520490012,0.30774,3249.6,3249.5,40.8]
[1736520490307,0.30773,3249.8,3249.5,41.10775]
[1736520490611,0.30774,3249.6,3249.5,40.8]
[1736520491304,3.2078,3250.2,3249.5,40.8]
[1736520491504,0.30773,3249.7,3249.5,41.10775]
[1736520491707,0.30774,3249.6,3249.5,40.8]
[1736520492005,3.2078,3249.7,3248.7,0.24806362]
[1736520492311,4.42361,3250.5,3248.4,3.2078]
[1736520492312,0.30782,3248.8,3248.4,3.2078]
[1736520492605,3.3214621,3248.9,3248.4,3.2078]
[1736520492606,0.30785,3248.5,3248.4,3.2078]
[1736520492804,3.3214621,3248.9,3248.2,40.8]
[1736520493002,0.30787,3248.3,3248.2,40.8]
[1736520493298,3.2078,3248.8,3248.0,3.2078]
[1736520493498,0.30788,3248.2,3248.0,3.2078]
[1736520493904,0.30788,3248.1,3248.0,3.2078]
[1736520494109,0.76973,3248.1,3247.1,3.2078]
[1736520494308,0.30797,3247.2,3247.1,3.2078]
[1736520494607,6.5292621,3247.9,3246.6,5.2011]
[1736520494914,1.0097,3248.0,3246.6,5.2011]
[1736520494915,0.76992,3247.3,3246.6,3.2078]
[1736520495108,0.30802,3246.7,3246.6,3.2078]
[1736520495305,3.3214621,3246.9,3246.2,50.36923653]
[1736520495506,3.3214621,3247.4,3246.2,40.8]
[1736520495713,3.2078,3247.1,3246.3,3.2078]
[1736520496006,3.2078,3247.1,3246.2,40.8]
[1736520496310,0.30804,3246.5,3245.9,0.30808]
[1736520496500,0.30804,3246.5,3246.1,3.2078]
[1736520496708,3.3214621,3246.9,3245.7,0.30811]
[1736520496904,3.3214621,3246.9,3246.1,3.2078]
[1736520497104,0.30806,3246.2,3246.1,3.2078]
[1736520497305,0.30809,3246.0,3245.7,3.2078]
[1736520497506,3.3214621,3245.9,3245.0,3.51597]
[1736520497706,3.3214621,3245.9,3245.0,3.2078]
[1736520498104,6.5292621,3245.4,3244.2,10.38472739]
[1736520498307,6.5292621,3245.4,3244.6,3.2078]
[1736520498308,0.30821,3244.7,3244.6,3.2078]
[1736520498510,6.5292621,3245.4,3244.6,3.2078]
[1736520498708,6.5292621,3245.9,3244.8,3.2078]
[1736520498909,3.2078,3246.3,3244.8,3.2078]
[1736520499108,3.2078,3246.3,3245.4,3.2078]
[1736520499304,0.3081,3245.9,3245.4,3.51594]
[1736520499504,0.30807,3246.2,3245.7,0.30811]
[1736520499708,10.2037,3246.8,3245.8,3.2078]
[1736520500107,0.30811,3245.8,3245.3,0.30815]
[1736520500308,0.9637,3246.8,3245.4,3.2078]
[1736520500510,6.5292621,3246.9,3245.8,3.2078]
[1736520500710,0.30802,3246.8,3246.4,3.2078]
[1736520500906,6.5292621,3247.4,3246.6,3.2078]
[1736520501105,3.2078,3247.8,3247.4,0.30794]
[1736520501312,3.97737,3248.8,3247.7,0.30792]
[1736520501505,0.30784,3248.6,3248.2,3.2078]
[1736520501710,3.3214621,3248.9,3248.2,3.2078]
[1736520501914,3.3214621,3248.9,3248.1,3.2078]
[1736520502108,3.2078,3249.2,3248.1,3.2078]
[1736520502417,3.2078,3249.2,3248.6,3.2078]
[1736520502711,3.2078,3249.2,3247.3,40.8]
[1736520502712,0.30782,3248.8,3248.4,0.30786]
[1736520502906,0.30782,3248.8,3248.6,3.2078]
[1736520503108,0.30786,3248.4,3247.9,3.2078]
[1736520503315,3.3214621,3248.9,3247.9,3.5157]
[1736520503617,3.2078,3249.2,3248.3,3.2078]
[1736520503915,3.2078,3249.2,3247.3,40.8]
[1736520503916,3.2078,3249.7,3248.9,3.2078]
[1736520504116,3.2078,3249.7,3248.0,0.76973]
[1736520504117,0.30779,3249.2,3248.7,0.30782]
[1736520504307,4.3160621,3249.9,3248.5,3.2078]
[1736520504512,3.3214621,3249.9,3249.0,3.2078]
[1736520504715,0.30778,3249.2,3248.8,0.30781]
[1736520504910,3.3214621,3249.9,3248.6,3.2078]
[1736520505114,3.2078,3250.1,3249.0,3.2078]
[1736520505313,3.3214621,3249.9,3249.0,3.2078]
[1736520505612,0.30783,3248.7,3248.3,4.2001]
[1736520505924,6.5292621,3249.3,3248.5,0.30784]
[1736520506120,0.30781,3248.9,3248.6,40.8]
[1736520506314,0.30781,3248.9,3248.5,0.30784]
[1736520506620,0.30784,3248.6,3248.3,4.2001]
[1736520507013,6.5292621,3249.3,3248.3,3.2078]
[1736520507215,0.30786,3248.4,3248.3,3.2078]
[1736520507510,0.30792,3247.8,3247.3,0.9389]
[1736520507706,3.2078,3248.4,3247.3,0.9389]
[1736520508215,0.7697,3248.2,3247.3,0.9389]
[1736520508422,3.3214621,3248.3,3247.1,3.2078]
[1736520508423,0.3079,3247.9,3247.1,3.2078]
[1736520508616,3.2078,3248.0,3247.1,3.2078]
[1736520508816,0.30797,3247.2,3247.1,3.2078]
[1736520509621,3.2078,3248.0,3247.1,3.2078]
[1736520509812,4.2829621,3248.3,3247.1,3.2078]
[1736520509813,3.3214621,3248.3,3247.1,3.2078]
[1736520510012,0.30794,3247.6,3247.2,0.30796]
[1736520510519,3.3214621,3248.3,3247.1,3.2078]
[1736520510520,3.2078,3247.9,3247.1,3.2078]
[1736520510814,3.3214621,3248.3,3247.7,3.2078]
[1736520510815,0.30788,3248.2,3247.7,3.2078]
[1736520511017,3.2078,3248.3,3247.1,0.76994]
[1736520511018,3.2078,3248.3,3247.1,3.2078]
[1736520511217,0.30789,3248.0,3247.6,0.30793]
[1736520511422,3.2078,3248.3,3247.6,3.2078]
[1736520511619,3.2078,3248.3,3248.0,0.30789]
[1736520511927,5.1574621,3249.3,3248.0,3.2078]
[1736520512119,0.30785,3248.5,3248.1,0.30788]
[1736520512317,3.2078,3248.9,3248.0,3.2078]
[1736520512519,1.71159,3249.1,3248.0,3.2078]
[1736520512520,0.9421,3249.1,3248.0,3.2078]
[1736520512815,0.30788,3248.1,3248.0,3.2078]
[1736520513020,0.30788,3248.1,3247.4,0.9394]
[1736520513021,0.30791,3247.9,3247.5,0.30794]
[1736520513216,3.2078,3248.6,3247.4,0.9394]
[1736520513415,4.1499,3249.1,3247.7,3.2078]
[1736520513723,4.1499,3249.1,3248.2,3.2078]
[1736520513920,0.30788,3248.2,3247.8,0.30791]
[1736520514121,0.30791,3247.8,3247.7,3.2078]
[1736520514317,0.9421,3249.1,3247.7,3.2078]
[1736520514318,4.1499,3249.1,3247.7,3.2078]
[1736520514518,4.44935,3250.5,3247.4,0.9394]
[1736520514519,3.2078,3249.5,3248.5,3.2078]
[1736520514824,3.2078,3250.1,3248.9,3.2078]
[1736520515013,3.2078,3250.1,3249.0,0.9373]
[1736520515212,0.30771,3250.0,3249.0,0.9373]
[1736520515412,3.2078,3250.0,3249.0,0.9373]
[1736520515722,0.30772,3249.9,3249.5,0.30775]
[1736520515921,3.2078,3250.5,3249.2,3.2078]
[1736520516119,3.3214621,3250.2,3249.6,2.29163]
[1736520516322,0.30789,3248.0,3247.7,0.30792]
[1736520516623,0.30793,3247.7,3247.4,8.41354118]
[1736520516816,3.2078,3248.4,3247.5,3.2078]
[1736520517017,5.1574621,3248.9,3247.5,3.2078]
[1736520517219,3.2078,3248.5,3247.5,3.2078]
[1736520517621,0.30793,3247.6,3247.5,3.2078]
[1736520518126,3.2078,3248.0,3247.5,3.2078]
[1736520518434,0.30789,3248.0,3247.7,0.30791]
[1736520518725,3.2078,3249.1,3247.9,3.2078]
[1736520518924,3.2078,3249.1,3247.8,40.8]
[1736520518925,3.2078,3249.1,3248.5,3.2078]
[1736520519125,0.30782,3248.9,3248.6,0.30783]
[1736520519316,0.30782,3248.9,3247.9,0.76976]
[1736520519317,6.79629132,3249.5,3247.9,4.98976]
[1736520519518,3.9772,3249.5,3248.3,3.2078]
[1736520519725,0.30778,3249.2,3248.9,0.3078]
[1736520519923,3.2078,3249.5,3248.7,3.2078]
[1736520520126,3.2078,3249.5,3248.1,3.2078]
[1736520520322,3.97729,3249.1,3248.1,0.30788]
[1736520520527,1.07731,3249.0,3247.9,1.3201]
[1736520520722,0.30787,3248.3,3248.0,0.30789]
[1736520520922,0.30783,3248.7,3248.1,3.2078]
[1736520521224,3.2078,3249.1,3248.1,3.2078]
[1736520521628,0.76951,3249.0,3248.1,3.2078]
[1736520521828,0.30785,3248.5,3248.1,3.51568]
[1736520522133,0.30782,3248.8,3248.5,0.30784]
[1736520522324,3.2078,3249.1,3248.1,3.2078]
[1736520522531,0.30786,3248.4,3248.1,3.51568]
[1736520522826,3.2078,3248.7,3247.8,40.8]
[1736520523027,0.7696,3248.6,3247.7,3.2078]
[1736520523328,3.2078,3248.7,3247.8,0.30791]
[1736520523529,3.2078,3248.7,3247.9,40.8]
[1736520523734,0.30789,3248.1,3247.9,40.8]
[1736520523933,0.30786,3248.4,3248.1,0.30788]
[1736520524134,3.2078,3248.7,3247.9,40.8]
[1736520524837,3.2078,3248.7,3248.1,3.2078]
[1736520525030,0.30789,3248.0,3247.9,40.8]
[1736520525221,0.30788,3248.2,3248.0,0.30789]
[1736520525421,0.30789,3248.0,3247.8,1.0103]
[1736520525629,0.76962,3248.5,3247.4,3.2078]
[1736520525829,3.2078,3248.7,3247.4,3.2078]
[1736520525830,4.2211,3248.7,3247.4,3.2078]
[1736520526031,0.76971,3248.2,3247.4,44.31575]
[1736520526328,0.30786,3248.4,3247.9,3.2078]
[1736520526630,3.89597053,3249.2,3248.9,0.3078]
[1736520526825,2.02899053,3249.2,3249.1,0.30779]
[1736520527023,4.50701755,3249.7,3249.5,0.30775]
[1736520527222,7.17638106,3250.1,3249.6,44.31554]
[1736520527432,7.17638106,3250.1,3250.0,3.5155]
[1736520527831,7.17638106,3250.1,3250.0,3.2078]
[1736520528026,7.17638106,3250.1,3250.0,3.5155]
[1736520528331,0.30768,3250.3,3249.6,44.0078]
[1736520528533,0.76908,3250.8,3249.6,44.0078]
[1736520528827,0.30772,3249.9,3249.6,44.31554]
[1736520529025,0.30773,3249.7,3249.6,44.0078]
[1736520529230,0.7692,3250.3,3249.6,44.0078]
[1736520529423,0.7692,3250.3,3249.7,0.30773]
[1736520529424,0.30768,3250.3,3249.7,0.30773]
[1736520529632,3.2078,3250.4,3249.6,44.0078]
[1736520529932,5.172,3251.2,3250.0,3.2078]
[1736520530138,0.9509,3251.2,3250.4,3.2078]
[1736520530431,0.30765,3250.6,3250.5,3.2078]
[1736520530624,4.1587,3251.2,3249.6,44.0078]
[1736520530625,3.2078,3250.8,3249.6,44.0078]
[1736520530825,3.2078,3250.8,3249.6,3.2078]
[1736520531138,0.30773,3249.7,3249.6,3.2078]
[1736520531829,3.2078,3249.8,3249.2,0.30778]
[1736520532031,0.30778,3249.3,3249.1,0.9486]
[1736520532223,0.30777,3249.4,3249.0,3.5156]
[1736520532423,4.216,3250.1,3249.0,3.2078]
[1736520532628,0.30772,3249.9,3249.5,0.30774]
[1736520532828,0.30778,3249.3,3249.0,3.2078]
[1736520533029,0.30777,3249.4,3249.0,3.51559]
[1736520533229,0.30779,3249.1,3249.0,3.2078]
[1736520533437,3.2078,3249.7,3249.0,3.2078]
[1736520534138,0.30779,3249.2,3249.0,3.2078]
[1736520534338,0.30774,3249.6,3249.0,3.2078]
[1736520534534,2.9,3249.7,3249.0,3.2078]
[1736520534932,1.0082,3250.1,3249.0,3.2078]
[1736520535142,1.0082,3250.1,3248.9,3.2078]
[1736520535333,0.30775,3249.6,3248.9,3.2078]
[1736520535533,1.0082,3250.1,3248.9,3.2078]
[1736520535730,0.30776,3249.5,3249.3,3.2078]
[1736520535942,0.30776,3249.4,3249.3,3.2078]
[1736520536338,0.30772,3249.8,3248.9,3.2078]
[1736520536537,0.76929,3249.9,3248.9,3.2078]
[1736520536734,3.2078,3250.0,3249.3,3.2078]
[1736520536936,4.216,3250.1,3249.3,3.2078]
[1736520537136,0.30769,3250.2,3249.9,0.30771]
[1736520537342,0.9438,3250.8,3250.1,3.2078]
[1736520537640,0.9623,3250.9,3250.1,3.2078]
[1736520538338,0.76899,3251.2,3250.5,3.2078]
[1736520538535,3.2078,3250.8,3249.5,3.2078]
[1736520538739,3.2078,3250.8,3248.5,7.16607578]
[1736520538740,0.30778,3249.3,3248.6,7.98518385]
[1736520538941,0.30778,3249.3,3249.0,0.3078]
[1736520539144,3.2078,3249.9,3248.7,40.8]
[1736520539446,3.2078,3249.9,3249.2,0.30778]
[1736520539447,0.30776,3249.5,3249.2,0.30778]
[1736520539644,3.2078,3249.9,3248.8,3.2078]
[1736520539845,3.2078,3249.5,3248.7,40.8]
[1736520540143,0.30782,3248.8,3248.7,40.8]
[1736520540643,0.76961,3248.6,3247.5,3.2078]
[1736520540848,0.30789,3248.1,3247.5,3.2078]
[1736520541035,3.2078,3248.3,3247.5,3.2078]
[1736520541236,0.76958,3248.7,3247.5,3.2078]
[1736520541237,3.97738,3248.7,3248.0,0.30789]
[1736520541542,2e-05,3248.8,3247.9,3.2078]
[1736520541748,0.30783,3248.7,3247.9,3.2078]
[1736520542044,2e-05,3248.8,3248.3,3.2078]
[1736520542241,2e-05,3248.8,3247.8,40.8]
[1736520542640,3.2078,3248.5,3247.8,40.8]
[1736520542943,2e-05,3248.8,3247.8,40.8]
[1736520543343,0.30787,3248.3,3247.8,40.8]
[1736520543543,2e-05,3248.8,3247.8,40.8]
[1736520543944,0.30788,3248.2,3247.9,0.3079]
[1736520544136,0.30788,3248.1,3247.9,0.3079]
[1736520544336,2e-05,3248.8,3247.8,40.8]
[1736520544548,0.3079,3248.0,3247.8,40.8]
[1736520544744,3.2078,3248.2,3246.4,3.2078]
[1736520544945,0.30802,3246.7,3246.3,0.30805]
[1736520545146,3.2078,3246.8,3246.1,4.1671]
[1736520545444,3.3214621,3246.7,3246.0,7.16607578]
[1736520545649,0.30806,3246.3,3246.0,7.16607578]
[1736520545845,3.2078,3246.4,3245.3,4.3449]
[1736520546041,1.0141,3247.3,3246.2,3.2078]
[1736520546242,1.36790386,3248.1,3247.1,3.2078]
[1736520546543,0.30792,3247.8,3247.4,0.30795]
[1736520546750,0.926,3248.1,3247.1,3.2078]
[1736520546951,3.3214621,3248.2,3247.1,3.2078]
[1736520547244,3.58579,3248.7,3246.6,1.1631]
[1736520547245,5.2667621,3248.7,3247.5,3.2078]
[1736520547441,2e-05,3248.8,3248.4,3.2078]
[1736520547644,2e-05,3248.8,3247.8,5.0338]
[1736520547849,2e-05,3248.8,3248.2,3.2078]
[1736520548449,2e-05,3248.8,3247.8,6.1969]
[1736520548646,3.20782,3248.8,3247.8,4.3709]
[1736520548843,3.20782,3248.8,3247.8,3.2078]
[1736520549041,0.30783,3248.7,3247.8,3.2078]
[1736520549239,3.20782,3248.8,3247.8,3.2078]
[1736520549851,2e-05,3248.8,3248.2,3.2078]
[1736520550146,0.30784,3248.8,3248.4,0.30785]
[1736520550346,2e-05,3248.8,3248.1,3.2078]
[1736520550646,2e-05,3248.8,3248.6,3.2078]
[1736520550849,0.30783,3248.7,3248.6,3.2078]
[1736520551046,2e-05,3248.8,3248.6,3.2078]
[1736520551047,0.30784,3248.8,3248.6,3.2078]
[1736520551251,2e-05,3248.8,3248.6,3.2078]
[1736520551549,2e-05,3248.8,3248.0,0.30789]
[1736520551550,0.30786,3248.4,3248.0,0.30789]
[1736520551745,2e-05,3248.8,3247.9,40.8]
[1736520552150,0.30787,3248.3,3247.9,41.1079]
[1736520552353,3.2078,3248.5,3247.9,40.8]
[1736520552544,3.3214621,3248.7,3247.7,3.2078]
[1736520552746,0.30788,3248.1,3247.7,3.51572]
[1736520552950,3.2078,3248.1,3247.3,3.2078]
[1736520553151,3.2078,3248.1,3247.4,40.8]
[1736520553358,6.5292621,3247.7,3246.7,4.77738385]
[1736520553554,0.308,3246.9,3246.7,4.77738385]
[1736520553850,1.0055,3247.6,3246.8,40.8]
[1736520554049,0.308,3246.9,3246.8,40.8]
[1736520554258,0.30799,3247.0,3246.8,0.30801]
[1736520554449,0.30799,3247.0,3246.0,5.54759385]
[1736520554450,0.30796,3247.4,3247.0,0.30799]
[1736520554657,3.2078,3247.5,3246.9,40.8]
[1736520554954,0.30796,3247.4,3247.1,0.30798]
[1736520555157,0.30793,3247.7,3247.1,0.30798]
[1736520555362,0.76975,3248.0,3246.9,40.8]
[1736520555655,0.308,3246.9,3246.7,0.30801]
[1736520555845,0.30797,3247.2,3246.9,0.30799]
[1736520556045,0.30802,3246.7,3246.6,3.2078]
[1736520556557,0.30804,3246.7,3246.6,3.2078]
[1736520557251,0.30804,3246.7,3245.3,0.77036]
[1736520557252,2e-05,3246.7,3246.0,3.2078]
[1736520557648,2e-05,3246.7,3246.6,0.30803]
[1736520557853,1.0106,3247.4,3246.4,3.2078]
[1736520558055,1.795,3248.0,3246.9,3.2078]
[1736520558255,1.795,3248.0,3247.3,3.2078]
[1736520558256,0.30795,3247.4,3247.3,3.2078]
[1736520558466,3.2078,3247.7,3246.7,3.2078]
[1736520558667,0.30799,3247.0,3246.7,3.2078]
[1736520558968,0.30799,3247.0,3246.7,3.51581]
[1736520559167,3.3214621,3247.7,3246.7,3.2078]
[1736520559363,3.2078,3247.5,3246.7,3.2078]
[1736520559564,0.30798,3247.2,3247.0,0.30798]
[1736520559762,3.2078,3247.5,3246.7,3.2078]
[1736520559963,0.30797,3247.2,3246.8,0.30801]
[1736520560260,3.2078,3247.5,3246.7,3.2078]
[1736520560767,3.2078,3247.1,3245.9,3.2078]
[1736520561061,0.30808,3246.0,3245.5,0.9571]
[1736520561265,3.3214621,3246.2,3245.3,3.2078]
[1736520561462,0.77019,3246.1,3245.3,3.2078]
[1736520561865,0.30813,3245.5,3245.4,40.8]
[1736520562062,3.3214621,3246.2,3245.4,40.8]
[1736520562369,0.30813,3245.5,3245.4,40.8]
[1736520563568,1.77599,3246.1,3245.4,40.8]
[1736520563774,0.30807,3246.2,3245.6,3.2078]
[1736520563974,0.30801,3246.8,3246.6,0.30802]
[1736520564173,0.30801,3246.8,3245.9,0.77023]
[1736520564174,3.2078,3247.8,3246.5,3.2078]
[1736520564367,3.2078,3247.8,3247.0,3.2078]
[1736520564569,3.2078,3247.8,3247.3,40.8]
[1736520564772,3.3214621,3248.2,3247.3,40.8]
[1736520565070,7.48425106,3248.3,3248.1,0.30788]
[1736520565275,0.30788,3248.2,3248.0,0.30789]
[1736520565472,3.2078,3248.6,3247.7,3.2078]
[1736520565671,0.30789,3248.0,3247.9,0.3079]
[1736520565876,4.2293,3248.7,3247.7,3.2078]
[1736520566178,0.3079,3248.0,3247.8,0.30791]
[1736520566472,4.2293,3248.7,3248.1,0.30788]
[1736520566473,3.2078,3248.7,3248.1,0.30788]
[1736520566669,0.30788,3248.2,3248.1,3.2078]
[1736520566866,0.30795,3247.4,3247.3,40.8]
[1736520567071,3.2078,3247.5,3246.3,1.0498]
[1736520567272,0.76997,3247.1,3246.3,1.0498]
[1736520567471,0.76997,3247.1,3246.3,1.35785]
[1736520567775,0.9633,3247.4,3246.3,1.0498]
[1736520567980,0.30804,3246.5,3246.3,1.35786]
[1736520568169,3.97776,3247.1,3246.1,40.8]
[1736520568372,3.2078,3246.7,3245.8,3.2078]
[1736520568678,3.2078,3246.7,3245.4,1.0427]
[1736520568679,3.2078,3246.6,3245.4,1.0427]
[1736520568878,0.3081,3245.8,3245.5,0.30813]
[1736520569070,0.30809,3246.0,3245.7,0.30811]
[1736520569369,0.30808,3246.0,3245.7,0.3081]
[1736520569569,0.3081,3245.9,3245.6,0.30812]
[1736520569775,1.796,3247.1,3245.6,3.2078]
[1736520569776,3.2078,3247.0,3245.6,3.2078]
[1736520569978,0.77003,3246.8,3246.0,0.30808]
[1736520570181,0.77003,3246.8,3245.8,0.3081]
[1736520570373,0.77003,3246.8,3246.0,0.30808]
[1736520570572,0.77003,3246.8,3245.6,3.2078]
[1736520570573,0.30808,3246.1,3245.9,0.30809]
[1736520570880,3.2078,3247.0,3245.8,0.30809]
[1736520570881,0.30809,3246.0,3245.8,0.30809]
[1736520571078,0.30808,3246.1,3245.8,0.3081]
[1736520571379,0.9633,3247.4,3246.1,0.77019]
[1736520571571,0.308,3246.9,3246.7,0.30801]
[1736520571771,0.9633,3247.4,3246.8,3.2078]
[1736520571975,3.2078,3247.9,3246.9,40.8]
[1736520572173,0.76979,3247.8,3246.9,40.8]
[1736520572480,0.30794,3247.6,3247.4,0.30795]
[1736520572672,3.2078,3247.9,3247.3,3.2078]
[1736520573478,3.2078,3247.9,3246.9,41.7707]
[1736520573678,0.76979,3247.8,3246.9,41.7707]
[1736520573881,0.30801,3246.9,3246.7,0.30802]
[1736520574080,1.0421,3248.2,3246.8,3.2078]
[1736520574081,7.5713621,3248.2,3246.8,3.2078]
[1736520574274,3.2078,3247.6,3246.4,3.2078]
[1736520574480,0.76991,3247.3,3246.4,3.2078]
[1736520574676,0.30804,3246.5,3246.2,0.30806]
[1736520574975,0.76996,3247.1,3246.1,0.9707]
[1736520574976,1.0428,3247.5,3246.1,4.1785]
[1736520575182,1.0428,3247.5,3246.9,3.2078]
[1736520575479,1.0428,3247.5,3246.5,3.2078]
[1736520575680,3.2078,3247.2,3246.5,3.2078]
[1736520575982,0.30803,3246.6,3246.5,3.2078]
[1736520576180,0.30797,3247.3,3247.0,0.30798]
[1736520576385,1.0421,3248.2,3247.0,3.2078]
[1736520576581,1.0428,3248.3,3246.5,3.3214621]
[1736520576582,3.3214621,3248.7,3247.6,3.2078]
[1736520576780,2.79622,3249.0,3248.2,0.30787]
[1736520576983,2.0267,3249.0,3248.4,3.2078]
[1736520577188,2.0267,3249.0,3248.0,3.2078]
[1736520577482,3.2078,3248.7,3248.0,3.2078]
[1736520577693,6.5292621,3248.7,3247.6,3.2078]
[1736520577893,0.30792,3247.8,3247.2,0.30797]
[1736520578182,0.30796,3247.4,3247.2,0.30797]
[1736520578488,3.2078,3248.3,3247.1,3.2078]
[1736520578686,0.30797,3247.2,3247.1,3.2078]
[1736520578990,3.3214621,3247.2,3246.2,3.2078]
[1736520579185,3.2078,3246.5,3245.8,3.2078]
[1736520579485,0.3081,3245.8,3245.7,4.77738385]
[1736520579884,3.2078,3246.1,3245.2,3.2078]
[1736520579885,0.77022,3246.0,3245.2,3.2078]
[1736520580077,0.30814,3245.5,3245.3,0.30814]
[1736520580281,0.30813,3245.6,3245.4,0.30814]
[1736520580479,0.7702,3246.1,3245.3,0.30814]
[1736520580681,0.7702,3246.1,3245.2,3.2078]
[1736520580682,0.77016,3246.3,3245.2,3.2078]
[1736520580987,0.30813,3245.6,3245.4,0.30814]
[1736520581185,3.2078,3246.2,3245.5,40.8]
[1736520581493,0.7701,3246.5,3245.7,0.30811]
[1736520581686,3.2078,3246.6,3245.6,3.2078]
[1736520581687,0.30803,3246.6,3245.9,0.30809]
[1736520581886,4.0915221,3246.7,3245.6,3.2078]
[1736520582082,0.3081,3245.9,3245.7,0.30811]
[1736520582286,3.3214621,3246.7,3245.6,3.2078]
[1736520582487,1.796,3246.8,3245.6,3.2078]
[1736520582787,1.796,3246.8,3245.5,41.57033]
[1736520582788,1.796,3246.8,3246.0,3.2078]
[1736520583082,0.30804,3246.5,3246.3,0.30805]
[1736520583284,3.2078,3247.0,3245.7,0.77027]
[1736520583285,3.2078,3247.0,3246.4,3.2078]
[1736520583696,0.77,3246.9,3246.0,3.2078]
[1736520583891,0.77003,3246.8,3246.0,3.2078]
[1736520584184,0.77003,3246.8,3245.8,0.3081]
[1736520584185,3.2078,3246.5,3245.8,0.3081]
[1736520584389,3.2078,3246.5,3245.7,3.2078]
[1736520584697,0.30809,3246.0,3245.8,0.3081]
[1736520584887,3.2078,3246.5,3245.7,3.2078]
[1736520585086,0.3081,3245.8,3245.7,3.2078]
[1736520585283,3.2078,3246.5,3245.8,0.3081]
[1736520585486,0.30808,3246.1,3245.9,0.30809]
[1736520585793,0.77015,3246.3,3245.8,3.2078]
[1736520585994,3.2078,3246.5,3245.5,40.8]
[1736520586192,0.30811,3245.7,3245.5,41.10813]